fUSD/lending_fUSD_20241219
["ID","MTS","AMOUNT","RATE_DAILY","PERIOD"]
[345980708,1734594859339,-153.0,0.00020911,2]
[345980709,1734594859368,-153.0,0.00020911,2]
[345980710,1734594859396,-153.0,0.00020911,2]
[345980711,1734594859423,-3298.2517106,0.00021314,2]
[345980712,1734594859451,-3298.2517106,0.00021817,2]
[345980713,1734594859478,-500.0,0.00021917,4]
[345980714,1734594859505,-500.0,0.00021917,4]
[345980715,1734594859533,-172.16160866,0.00021917,4]
[345980716,1734594859559,-500.0,0.00021917,4]
[345980717,1734594859586,-507.57,0.00021917,4]
[345980718,1734594859613,-500.0,0.00021917,4]
[345980719,1734594859640,-500.0,0.00021917,4]
[345980720,1734594859668,-500.0,0.00021917,4]
[345980721,1734594859696,-500.0,0.00021917,4]
[345980722,1734594859723,-500.0,0.00021917,4]
[345980723,1734594859750,-500.0,0.00021917,4]
[345980724,1734594859777,-500.0,0.00021917,4]
[345980725,1734594859804,-500.0,0.00022065,4]
[345980726,1734594859832,-911.03,0.00022065,4]
[345980727,1734594859860,-1614.37,0.00022065,4]
[345980728,1734594859888,-500.0,0.00022065,4]
[345980729,1734594860064,-500.0,0.00022065,4]
[345980730,1734594860093,-500.0,0.00022065,4]
[345980731,1734594860120,-1592.31,0.00022065,4]
[345980732,1734594860147,-500.0,0.0002219,4]
[345980733,1734594860173,-500.0,0.0002219,4]
[345980734,1734594860201,-728.58,0.0002219,4]
[345980735,1734594860229,-500.0,0.0002219,4]
[345980736,1734594860271,-500.0,0.0002219,4]
[345980737,1734594860302,-500.0,0.0002219,4]
[345980738,1734594860332,-500.0,0.0002219,4]
[345980739,1734594860361,-500.0,0.00022191,4]
[345980740,1734594860391,-500.0,0.00022191,4]
[345980741,1734594860419,-500.0,0.00022191,4]
[345980742,1734594860449,-507.57,0.00022191,4]
[345980743,1734594860479,-179.88414243,0.00022191,4]
[345980744,1734594860508,-500.0,0.00022191,4]
[345980745,1734594860536,-500.0,0.00022191,4]
[345980746,1734594860565,-319.55801704,0.00022191,4]
[345980747,1734594860594,-500.0,0.00022191,4]
[345980748,1734594860622,-501.39321,0.00022191,2]
[345980749,1734594860652,-202.93,0.00022191,4]
[345980750,1734594860680,-14006.05140266,0.000223,2]
[345980751,1734594860694,-3298.2517106,0.000223,2]
[345980752,1734594860706,-153.0,0.000223,2]
[345980753,1734594860718,-153.0,0.000223,2]
[345980754,1734594860730,-153.0,0.000223,2]
[345980755,1734594860741,-3298.2517106,0.000223,2]
[345980756,1734594860753,-3298.2517106,0.000223,2]
[345980757,1734594860765,-500.0,0.000223,2]
[345980758,1734594860780,-500.0,0.000223,2]
[345980759,1734594860791,-172.16160866,0.000223,2]
[345980760,1734594860803,-500.0,0.000223,2]
[345980761,1734594860818,-507.57,0.000223,2]
[345980762,1734594860829,-500.0,0.000223,2]
[345980763,1734594860840,-500.0,0.000223,2]
[345980764,1734594860851,-500.0,0.000223,2]
[345980765,1734594860863,-500.0,0.000223,2]
[345980766,1734594860875,-500.0,0.000223,2]
[345980767,1734594860886,-500.0,0.000223,2]
[345980768,1734594860898,-500.0,0.000223,2]
[345980769,1734594860910,-500.0,0.000223,2]
[345980770,1734594860929,-911.03,0.000223,2]
[345980771,1734594860940,-1614.37,0.000223,2]
[345980772,1734594860952,-500.0,0.000223,2]
[345980773,1734594860964,-500.0,0.000223,2]
[345980774,1734594860976,-500.0,0.000223,2]
[345980775,1734594860991,-1592.31,0.000223,2]
[345980776,1734594861003,-500.0,0.000223,2]
[345980777,1734594861014,-500.0,0.000223,2]
[345980778,1734594861026,-728.58,0.000223,2]
[345980779,1734594861038,-500.0,0.000223,2]
[345980780,1734594861050,-500.0,0.000223,2]
[345980781,1734594861061,-500.0,0.000223,2]
[345980782,1734594861073,-500.0,0.000223,2]
[345980783,1734594861085,-500.0,0.000223,2]
[345980784,1734594861100,-500.0,0.000223,2]
[345980785,1734594861112,-500.0,0.000223,2]
[345980786,1734594861128,-507.57,0.000223,2]
[345980787,1734594861139,-179.88414243,0.000223,2]
[345980788,1734594861151,-500.0,0.000223,2]
[345980789,1734594861162,-500.0,0.000223,2]
[345980790,1734594861174,-319.55801704,0.000223,2]
[345980791,1734594861186,-500.0,0.000223,2]
[345980792,1734594861198,-501.39321,0.000223,2]
[345980793,1734594861209,-202.93,0.000223,2]
[345980794,1734594861221,-124238.56086489,0.000223,2]
[345980795,1734594861231,-770.02,0.000223,2]
[345980796,1734594861244,-800.0,0.00022301,2]
[345980797,1734594861254,-800.0,0.00022301,2]
[345980798,1734594861264,-800.0,0.00022301,2]
[345980799,1734594861273,-151.19618696,0.00022302,2]
[345980800,1734594861284,-5460.9893158,0.00022305,2]
[345980801,1734594861293,-1063.420792,0.00022305,2]
[345980802,1734594861303,-1669.8454587,0.0002232,2]
[345980803,1734594861313,-492.69,0.00022335,2]
[345980804,1734594861323,-500.0,0.00022339,4]
[345980805,1734594861333,-308.95597893,0.00022339,4]
[345980806,1734594861342,-245.43,0.00022339,4]
[345980807,1734594861352,-500.0,0.00022339,4]
[345980808,1734594861362,-494.43,0.00022339,4]
[345980809,1734594861371,-324.97,0.00022339,4]
[345980810,1734594861380,-173.09,0.00022339,4]
[345980811,1734594861390,-500.0,0.00022339,4]
[345980812,1734594861399,-500.0,0.00022339,4]
[345980813,1734594861408,-500.0,0.00022339,4]
[345980814,1734594861417,-515.89573088,0.00022339,4]
[345980815,1734594861426,-500.0,0.00022339,4]
[345980816,1734594861435,-500.0,0.00022339,4]
[345980817,1734594861444,-500.0,0.00022339,4]
[345980818,1734594861455,-507.15684803,0.00022339,4]
[345980819,1734594861465,-500.0,0.00022339,4]
[345980820,1734594861474,-513.15393243,0.00022339,4]
[345980821,1734594861483,-518.08166607,0.00022339,4]
[345980822,1734594861492,-500.0,0.00022339,4]
[345980823,1734594861501,-500.0,0.00022339,4]
[345980824,1734594861510,-500.0,0.00022339,4]
[345980825,1734594861519,-1488.72,0.00022339,4]
[345980826,1734594861529,-500.0,0.00022339,4]
[345980827,1734594861538,-500.0,0.00022339,4]
[345980828,1734594861548,-500.0,0.00022339,4]
[345980829,1734594861557,-500.0,0.00022339,4]
[345980830,1734594861567,-500.0,0.00022339,4]
[345980831,1734594861576,-1021.33,0.00022339,4]
[345980832,1734594861586,-500.0,0.00022339,4]
[345980833,1734594861595,-500.0,0.00022339,4]
[345980834,1734594861605,-825.42,0.00022339,4]
[345980835,1734594861615,-500.0,0.00022339,4]
[345980836,1734594861624,-443.73339522,0.00022339,4]
[345980837,1734594861633,-500.0,0.00022339,4]
[345980838,1734594861642,-500.0,0.00022339,4]
[345980839,1734594861652,-500.0,0.00022339,4]
[345980840,1734594861661,-814.69,0.00022339,4]
[345980841,1734594861671,-704.25,0.00022339,4]
[345980842,1734594861680,-500.0,0.00022339,4]
[345980843,1734594861690,-500.0,0.00022339,4]
[345980844,1734594861699,-765.21,0.00022339,4]
[345980845,1734594861709,-670.02,0.00022339,4]
[345980846,1734594861719,-643.45555333,0.00022339,4]
[345980847,1734594861728,-911.03,0.00022339,4]
[345980848,1734594861737,-1614.37,0.00022339,4]
[345980849,1734594861747,-185.50617999,0.00022339,4]
[345980850,1734594861756,-1592.31,0.00022339,4]
[345980851,1734594861765,-4807.79247425,0.00022365,2]
[345980852,1734594898789,-153.0,0.00020911,2]
[345980853,1734594898829,-153.0,0.00020911,2]
[345980854,1734594898869,-153.0,0.00020911,2]
[345980855,1734594898910,-250.0,0.00021627,2]
[345980856,1734594898948,-500.0,0.00021917,4]
[345980857,1734594898986,-449.84793731,0.00021917,4]
[345980858,1734594899025,-500.0,0.00021917,4]
[345980859,1734594899064,-500.0,0.00021917,4]
[345980860,1734594899104,-234.69416639,0.00021917,4]
[345980861,1734594899143,-500.0,0.00021917,4]
[345980862,1734594899174,-500.0,0.00021917,4]
[345980863,1734594899202,-500.0,0.00021917,4]
[345980864,1734594899229,-500.0,0.00021917,4]
[345980865,1734594899260,-500.0,0.00021917,4]
[345980866,1734594899288,-500.0,0.00021917,4]
[345980867,1734594899317,-500.0,0.00021917,4]
[345980868,1734594899345,-500.0,0.00021917,4]
[345980869,1734594899372,-500.0,0.00021917,4]
[345980870,1734594899400,-500.0,0.00021917,4]
[345980871,1734594899428,-564.31,0.00021917,4]
[345980872,1734594899456,-574.12,0.00021917,4]
[345980873,1734594899485,-500.0,0.00021917,4]
[345980874,1734594899513,-500.0,0.00021917,4]
[345980875,1734594899541,-500.0,0.00022065,4]
[345980876,1734594899570,-500.0,0.0002219,4]
[345980877,1734594899601,-500.0,0.0002219,4]
[345980878,1734594899632,-500.0,0.0002219,4]
[345980879,1734594900052,-500.0,0.0002219,4]
[345980880,1734594900090,-500.0,0.0002219,4]
[345980881,1734594900119,-500.0,0.00022191,4]
[345980882,1734594900146,-500.0,0.00022191,4]
[345980883,1734594900175,-500.0,0.00022191,4]
[345980884,1734594900204,-500.0,0.00022191,4]
[345980885,1734594900234,-500.0,0.00022191,4]
[345980886,1734594900268,-500.0,0.00022191,4]
[345980887,1734594900298,-500.0,0.00022191,4]
[345980888,1734594900327,-500.0,0.00022191,4]
[345980889,1734594900355,-500.0,0.00022191,4]
[345980890,1734594900385,-500.0,0.00022191,4]
[345980891,1734594900414,-500.0,0.00022191,4]
[345980892,1734594900443,-500.0,0.00022191,4]
[345980893,1734594900471,-500.0,0.00022191,4]
[345980894,1734594900502,-564.31,0.00022191,4]
[345980895,1734594900531,-574.12,0.00022191,4]
[345980896,1734594900559,-503.33615817,0.00022191,4]
[345980897,1734594900587,-168.2,0.00022191,4]
[345980898,1734594900616,-500.0,0.00022339,4]
[345980899,1734594900645,-56508.51452575,0.00022365,2]
[345980900,1734594900665,-153.0,0.00022365,2]
[345980901,1734594900676,-153.0,0.00022365,2]
[345980902,1734594900691,-153.0,0.00022365,2]
[345980903,1734594900702,-250.0,0.00022365,2]
[345980904,1734594900714,-500.0,0.00022365,2]
[345980905,1734594900729,-449.84793731,0.00022365,2]
[345980906,1734594900749,-500.0,0.00022365,2]
[345980907,1734594900761,-500.0,0.00022365,2]
[345980908,1734594900772,-234.69416639,0.00022365,2]
[345980909,1734594900782,-500.0,0.00022365,2]
[345980910,1734594900798,-500.0,0.00022365,2]
[345980911,1734594900808,-500.0,0.00022365,2]
[345980912,1734594900819,-500.0,0.00022365,2]
[345980913,1734594900830,-500.0,0.00022365,2]
[345980914,1734594900841,-500.0,0.00022365,2]
[345980915,1734594900852,-500.0,0.00022365,2]
[345980916,1734594900863,-500.0,0.00022365,2]
[345980917,1734594900874,-500.0,0.00022365,2]
[345980918,1734594900885,-500.0,0.00022365,2]
[345980919,1734594900896,-564.31,0.00022365,2]
[345980920,1734594900907,-574.12,0.00022365,2]
[345980921,1734594900918,-500.0,0.00022365,2]
[345980922,1734594900932,-500.0,0.00022365,2]
[345980923,1734594900944,-500.0,0.00022365,2]
[345980924,1734594900955,-165.56127382,0.00022365,2]
[345980925,1734594900964,-150.0,0.00022389,4]
[345980926,1734594900973,-171.058,0.00022407,2]
[345980927,1734594900983,-13.38072618,0.00022418,2]
[345980928,1734594900995,-480.48927382,0.00022418,2]
[345980929,1734594901005,-19.51072618,0.00022418,2]
[345980930,1734594901016,-489.76927382,0.00022418,2]
[345980931,1734594901026,-10.23072618,0.00022464,4]
[345980932,1734594901038,-500.0,0.00022464,4]
[345980933,1734594901049,-500.0,0.00022464,4]
[345980934,1734594901060,-127.49927382,0.00022464,4]
[345980935,1734594901070,-372.50072618,0.00022464,4]
[345980936,1734594901082,-127.49927382,0.00022464,4]
[345980937,1734594901091,-372.50072618,0.00022464,4]
[345980938,1734594901103,-127.49927382,0.00022464,4]
[345980939,1734594901112,-372.50072618,0.00022464,4]
[345980940,1734594901123,-127.49927382,0.00022464,4]
[345980941,1734594901132,-372.50072618,0.00022464,4]
[345980942,1734594901144,-237.51927382,0.00022464,4]
[345980943,1734594901154,-262.48072618,0.00022464,4]
[345980944,1734594901165,-470.03927382,0.00022464,4]
[345980945,1734594901176,-29.96072618,0.00022464,4]
[345980946,1734594901187,-183.88927382,0.00022464,4]
[345980947,1734594901197,-316.11072618,0.00022464,4]
[345980948,1734594901209,-244.48927382,0.00022464,4]
[345980949,1734594901219,-255.51072618,0.00022464,4]
[345980950,1734594901233,-500.0,0.00022464,4]
[345980951,1734594901245,-461.15927382,0.00022464,4]
[345980952,1734594901257,-38.84072618,0.00022464,4]
[345980953,1734594901268,-461.15927382,0.00022464,4]
[345980954,1734594901277,-38.84072618,0.00022464,4]
[345980955,1734594901294,-500.0,0.00022464,4]
[345980956,1734594901306,-410.98927382,0.00022464,4]
[345980957,1734594901315,-89.01072618,0.00022464,4]
[345980958,1734594901328,-564.31,0.00022464,4]
[345980959,1734594901346,-574.12,0.00022464,4]
[345980960,1734594901368,-269.02927382,0.00022464,4]
[345980961,1734594901379,-234.30688435,0.00022464,4]
[345980962,1734594901390,-168.2,0.00022464,4]
[345980963,1734594901402,-316.42311565,0.00022464,4]
[345980964,1734594901412,-183.57688435,0.00022464,4]
[345980965,1734594901423,-316.42311565,0.00022464,4]
[345980966,1734594901433,-615.77,0.00022464,4]
[345980967,1734594901443,-500.0,0.00022464,4]
[345980968,1734594901452,-953.58,0.00022464,4]
[345980969,1734594901461,-500.0,0.00022464,4]
[345980970,1734594901470,-1949.86,0.00022464,4]
[345980971,1734594901480,-500.0,0.00022464,4]
[345980972,1734594901491,-500.0,0.00022464,4]
[345980973,1734594901500,-288.39,0.00022464,4]
[345980974,1734594901509,-728.58,0.00022464,4]
[345980975,1734594901519,-500.0,0.00022464,4]
[345980976,1734594901528,-500.0,0.00022464,4]
[345980977,1734594901538,-500.0,0.00022464,4]
[345980978,1734594901548,-500.0,0.00022464,4]
[345980979,1734594901557,-500.0,0.00022464,4]
[345980980,1734594901567,-500.0,0.00022464,4]
[345980981,1734594901576,-500.0,0.00022464,4]
[345980982,1734594901585,-151.28,0.00022464,2]
[345980983,1734594901596,-151.28,0.00022464,2]
[345980984,1734594901606,-151.28,0.00022464,2]
[345980985,1734594901615,-500.0,0.00022465,4]
[345980986,1734594901624,-418.73093356,0.00022465,4]
[345980987,1734594901634,-509.34753461,0.00022465,4]
[345980988,1734594901643,-500.0,0.00022465,4]
[345980989,1734594901652,-500.0,0.00022465,4]
[345980990,1734594901662,-500.0,0.00022465,4]
[345980991,1734594901671,-500.0,0.00022465,4]
[345980992,1734594901680,-509.3723739,0.00022465,4]
[345980993,1734594901689,-500.0,0.00022465,4]
[345980994,1734594901698,-558.79456454,0.00022465,4]
[345980995,1734594901708,-500.0,0.00022465,4]
[345980996,1734594901717,-507.29182965,0.00022465,4]
[345980997,1734594901737,-500.0,0.00022465,4]
[345980998,1734594901748,-500.0,0.00022465,4]
[345980999,1734594901757,-500.0,0.00022465,4]
[345981000,1734594901766,-500.0,0.00022465,4]
[345981001,1734594901776,-500.0,0.00022465,4]
[345981002,1734594901785,-505.44869122,0.00022465,4]
[345981003,1734594901795,-506.0475924,0.00022465,4]
[345981004,1734594901805,-500.0,0.00022465,4]
[345981005,1734594901814,-500.0,0.00022465,4]
[345981006,1734594901824,-500.0,0.00022465,4]
[345981007,1734594901833,-500.0,0.00022465,7]
[345981008,1734594901843,-500.0,0.00022465,4]
[345981009,1734594901852,-513.191229,0.00022465,4]
[345981010,1734594901862,-400.0,0.00022465,4]
[345981011,1734594901871,-500.0,0.00022465,4]
[345981012,1734594901882,-500.0,0.00022465,4]
[345981013,1734594901891,-500.0,0.00022465,4]
[345981014,1734594901901,-622.23,0.00022465,4]
[345981015,1734594901910,-500.0,0.00022465,4]
[345981016,1734594901919,-500.0,0.00022465,4]
[345981017,1734594901929,-500.0,0.00022465,4]
[345981018,1734594901940,-500.0,0.00022465,4]
[345981019,1734594901949,-500.0,0.00022465,4]
[345981020,1734594901959,-500.0,0.00022465,4]
[345981021,1734594901968,-500.0,0.00022465,4]
[345981022,1734594901978,-500.0,0.00022465,4]
[345981023,1734594901988,-500.0,0.00022465,4]
[345981024,1734594901998,-500.0,0.00022465,4]
[345981025,1734594902008,-500.0,0.00022465,4]
[345981026,1734594902018,-500.0,0.00022465,4]
[345981027,1734594902028,-500.0,0.00022465,4]
[345981028,1734594902039,-500.0,0.00022465,4]
[345981029,1734594902048,-500.0,0.00022465,4]
[345981030,1734594902058,-500.0,0.00022465,4]
[345981031,1734594902068,-500.0,0.00022465,4]
[345981032,1734594902078,-500.0,0.00022465,4]
[345981033,1734594902087,-500.0,0.00022465,4]
[345981034,1734594902097,-500.0,0.00022465,4]
[345981035,1734594902107,-500.0,0.00022465,4]
[345981036,1734594902117,-500.0,0.00022465,4]
[345981037,1734594902126,-412.82915432,0.00022465,4]
[345981038,1734594902136,-500.0,0.00022465,4]
[345981039,1734594902145,-500.0,0.00022465,4]
[345981040,1734594902154,-500.0,0.00022465,4]
[345981041,1734594902164,-500.0,0.00022465,4]
[345981042,1734594902173,-500.0,0.00022465,4]
[345981043,1734594902183,-500.0,0.00022465,4]
[345981044,1734594902193,-293.36,0.00022465,4]
[345981045,1734594902202,-500.0,0.00022465,4]
[345981046,1734594902212,-500.0,0.00022465,4]
[345981047,1734594902222,-500.0,0.00022465,4]
[345981048,1734594902235,-500.0,0.00022465,4]
[345981049,1734594902245,-500.0,0.00022465,4]
[345981050,1734594902259,-500.0,0.00022465,4]
[345981051,1734594902268,-500.0,0.00022465,4]
[345981052,1734594902279,-406.60559478,0.00022465,4]
[345981053,1734594902289,-500.0,0.00022465,4]
[345981054,1734594902299,-500.0,0.00022465,4]
[345981055,1734594902309,-500.0,0.00022465,4]
[345981056,1734594902318,-500.0,0.00022465,4]
[345981057,1734594902330,-171.69,0.00022465,4]
[345981058,1734594902340,-500.0,0.00022465,4]
[345981059,1734594902351,-559.18,0.00022465,4]
[345981060,1734594902363,-500.0,0.00022465,4]
[345981061,1734594902372,-709.05,0.00022465,4]
[345981062,1734594902383,-500.0,0.00022465,4]
[345981063,1734594902394,-500.0,0.00022465,4]
[345981064,1734594902404,-500.0,0.00022465,4]
[345981065,1734594902414,-567.01,0.00022465,4]
[345981066,1734594902424,-642.76798369,0.00022465,4]
[345981067,1734594902434,-500.0,0.00022465,4]
[345981068,1734594902443,-500.0,0.00022465,4]
[345981069,1734594902453,-500.0,0.00022465,4]
[345981070,1734594902462,-225.26,0.00022465,4]
[345981071,1734594902472,-825.06,0.00022465,4]
[345981072,1734594902481,-500.0,0.00022465,4]
[345981073,1734594902491,-1838.80392843,0.00022465,4]
[345981074,1734594902506,-1283.17607157,0.00022465,4]
[345981075,1734594902515,-500.0,0.00022465,4]
[345981076,1734594902525,-500.0,0.00022465,4]
[345981077,1734594902534,-361.89,0.00022465,4]
[345981078,1734594902544,-258.02835319,0.00022465,4]
[345981199,1734595265682,156.19,0.00013699,2]
[345981207,1734595536292,205.1,0.00010137,2]
[345981208,1734595536610,205.1,0.00016813,2]
[345981210,1734595556017,178.41,0.00016892,2]
[345981214,1734595628367,450.0,0.00013,2]
[345981215,1734595629436,500.0,0.00015,2]
[345981216,1734595630530,550.0,0.00017,2]
[345981222,1734595832205,-600.0,0.00019,2]
[345981223,1734595832215,-1366.96155521,0.00019491,2]
[345981224,1734595832225,-1296.85,0.00019491,2]
[345981225,1734595832234,-917.0,0.00020936,2]
[345981226,1734595832244,-817.0,0.00020936,2]
[345981227,1734595832254,-3766.0,0.00020936,2]
[345981228,1734595832263,-1254.0,0.00020936,2]
[345981229,1734595832272,-3632.0,0.00020936,2]
[345981230,1734595832282,-535.0,0.00020936,2]
[345981231,1734595832291,-650.0,0.00021,2]
[345981232,1734595832301,-250.0,0.00021113,2]
[345981233,1734595832311,-337.96,0.00021129,2]
[345981234,1734595832320,-16394.15440579,0.00021147,2]
[345981235,1734595835925,-234.68612665,0.00019391,2]
[345981236,1734595835935,-715.55559421,0.00021147,2]
[345981237,1734595835944,-1000.0,0.00021204,2]
[345981238,1734595835952,-250.0,0.00021224,2]
[345981239,1734595835961,-206.02,0.00021236,2]
[345981240,1734595835971,-175.34,0.00021249,2]
[345981241,1734595835980,-1936.75238173,0.00021267,2]
[345981242,1734595836137,-542.7729941,0.00021267,2]
[345981250,1734595838073,-642.94215952,0.00021267,2]
[345981251,1734595838127,-366.9900652,0.00021267,2]
[345981252,1734595838233,-252.65596377,0.00021267,2]
[345981253,1734595838244,-572.4378551,0.00021267,2]
[345981254,1734595838286,-9432.44858058,0.00021267,2]
[345981255,1734595838296,-3884.0,0.00021267,2]
[345981256,1734595838306,-150.0,0.00021267,2]
[345981257,1734595838315,-814.21,0.00021267,2]
[345981258,1734595838325,-649.44,0.00021295,2]
[345981259,1734595838334,-401.753,0.0002135,2]
[345981260,1734595838344,-1500.0,0.0002162,2]
[345981261,1734595838353,-1296.85,0.00021755,2]
[345981262,1734595838362,-168.55,0.0002176,2]
[345981263,1734595838372,-280.55228402,0.000219,2]
[345981264,1734595838384,-337.96,0.00021911,2]
[345981265,1734595838393,-521.91379429,0.00021917,4]
[345981266,1734595838402,-770.375,0.00021917,2]
[345981267,1734595838411,-500.0,0.00021917,4]
[345981268,1734595838421,-500.0,0.00021917,4]
[345981269,1734595838432,-500.0,0.00021917,4]
[345981270,1734595838442,-500.0,0.00021917,4]
[345981271,1734595838451,-500.0,0.00021917,4]
[345981272,1734595838460,-500.0,0.00021917,4]
[345981273,1734595838470,-500.0,0.00021917,4]
[345981274,1734595838479,-500.0,0.00021917,4]
[345981275,1734595838488,-500.0,0.00021917,4]
[345981276,1734595838499,-232.42488913,0.00021917,4]
[345981277,1734595838510,-500.0,0.00021917,4]
[345981278,1734595838519,-500.0,0.00021917,4]
[345981279,1734595838528,-500.0,0.00021917,4]
[345981280,1734595838537,-500.0,0.00021917,4]
[345981281,1734595838547,-500.0,0.00021917,4]
[345981282,1734595838556,-500.0,0.00021917,4]
[345981283,1734595838565,-500.0,0.00021917,4]
[345981284,1734595838576,-500.0,0.00021917,4]
[345981285,1734595838586,-500.0,0.00021917,4]
[345981286,1734595838596,-500.0,0.00021917,4]
[345981288,1734595838605,-500.0,0.00021917,4]
[345981290,1734595838614,-500.0,0.00021917,4]
[345981292,1734595838624,-233.29020781,0.00021917,4]
[345981294,1734595838634,-500.0,0.00021917,2]
[345981296,1734595838643,-500.0,0.00021917,4]
[345981297,1734595838653,-500.0,0.00021917,4]
[345981298,1734595838663,-500.0,0.00021917,4]
[345981299,1734595838672,-500.0,0.00021917,4]
[345981300,1734595838682,-500.0,0.00021917,4]
[345981301,1734595838691,-500.0,0.00021917,4]
[345981302,1734595838700,-420.78580468,0.00021917,4]
[345981303,1734595838709,-500.0,0.00021917,4]
[345981304,1734595838718,-500.0,0.00021917,4]
[345981305,1734595838727,-500.0,0.00021917,4]
[345981306,1734595838736,-500.0,0.00021917,4]
[345981307,1734595838745,-797.22,0.00021917,2]
[345981308,1734595838754,-500.0,0.00021917,4]
[345981309,1734595838765,-500.0,0.00021917,4]
[345981310,1734595838774,-500.0,0.00021917,4]
[345981311,1734595838783,-500.0,0.00021917,4]
[345981312,1734595838792,-500.0,0.00021917,4]
[345981313,1734595838801,-500.0,0.00021917,4]
[345981314,1734595838810,-500.0,0.00021917,4]
[345981315,1734595838820,-500.0,0.00021917,4]
[345981316,1734595838829,-500.0,0.00021917,4]
[345981317,1734595838838,-500.0,0.00021917,4]
[345981318,1734595838847,-500.0,0.00021917,4]
[345981319,1734595838856,-500.0,0.00021917,4]
[345981320,1734595838865,-500.0,0.00021917,4]
[345981321,1734595838874,-500.0,0.00021917,4]
[345981322,1734595838886,-500.0,0.00021917,4]
[345981323,1734595838895,-500.0,0.00021917,4]
[345981324,1734595838904,-500.0,0.00021917,4]
[345981325,1734595838914,-500.0,0.00021917,4]
[345981326,1734595838923,-500.0,0.00021917,4]
[345981327,1734595838932,-153.0,0.0002197,2]
[345981328,1734595838942,-1500.079,0.00022037,2]
[345981329,1734595839120,-1264.0,0.00022037,2]
[345981330,1734595839136,-150.0,0.00022037,2]
[345981331,1734595839146,-564.0,0.00022037,2]
[345981332,1734595839156,-1896.0,0.00022037,2]
[345981333,1734595839166,-417.0985379,0.00022041,2]
[345981334,1734595839175,-500.0,0.00022065,4]
[345981335,1734595839185,-500.0,0.00022065,4]
[345981336,1734595839194,-500.0,0.00022065,4]
[345981337,1734595839203,-500.0,0.00022065,4]
[345981338,1734595839213,-319.79987382,0.00022065,4]
[345981339,1734595839222,-500.0,0.00022065,4]
[345981340,1734595839232,-500.0,0.00022065,4]
[345981341,1734595839242,-252.30722621,0.00022065,4]
[345981342,1734595839251,-500.0,0.00022065,4]
[345981343,1734595839261,-500.0,0.00022065,4]
[345981344,1734595839271,-500.0,0.00022065,4]
[345981345,1734595839281,-500.0,0.00022065,4]
[345981346,1734595839291,-500.0,0.00022065,4]
[345981347,1734595839300,-500.0,0.00022065,4]
[345981348,1734595839311,-500.0,0.00022065,4]
[345981349,1734595839320,-155.38969398,0.00022065,4]
[345981350,1734595839329,-503.57454506,0.00022065,4]
[345981351,1734595839339,-500.0,0.00022065,4]
[345981352,1734595839349,-433.76265441,0.00022065,4]
[345981353,1734595839358,-500.0,0.00022065,7]
[345981354,1734595839370,-500.0,0.00022065,4]
[345981355,1734595839382,-500.0,0.00022065,4]